Cogmind - Beta 13 @@@ ROGUE MODE // 2024.04.09 @ 21:56:40 Player: MO-55 Result: Destroyed by G-73 Enforcer with Phase Gun Performance ------------- Evolutions (9) 4500 Regions Visited (17) 3400 Robots Destroyed (108) 540 Value Destroyed (5513) 5513 Prototype IDs (47) 940 Alien Tech Used (0) 0 Bonus (3596) 3596 TOTAL SCORE: 18489 Bonus ------- High Alert Combat Kills 1534 Follower Combat Kills 1423 Met Data Miner 300 Scanned by Researcher 500 Friendly Fire -161 Cogmind --------- Core Integrity 0/1600 Matter 300/300 Energy 84/100 System Corruption 12% Temperature Cool (0) Movement Core (50) Location -1/Access Parts ------- > --- POWER (3) -------- (None) > --- PROPULSION (7) --- (None) > --- UTILITY (12) ----- Advanced Signal Interpreter > --- WEAPON (3) ------- (None) > --- INVENTORY (5) ---- (None) Peak State ------------ > --- POWER ------------ Quantum Reactor Quantum Reactor Light Quantum Reactor > --- PROPULSION ------- Improved Antigrav System Improved Antigrav System Improved Gyrokinetic Inverter Improved Gyrokinetic Inverter Improved Gyrokinetic Inverter Improved Gyrokinetic Inverter Cooled Linear Gravjet > --- UTILITY ---------- Advanced Heat Sink Experimental Cooling System Experimental Coolant Injector Small Storage Unit Spectral Analyzer Advanced Signal Interpreter Centrium Heavy Armor Plating SHELL Armor Improved System Restoration Module > --- WEAPON ----------- Null Cannon Gamma Bomb Array Phasing Sabre > --- INVENTORY -------- Enhanced Biometal Leg Enhanced Biometal Leg Improved Antigrav System Ghost Barrier Enhanced Nova Cannon Smartbomb Launcher Containment Facilitator [Rating: 202] Favorites ----------- Power Ion Engine Engine Ion Engine Power Core Light Fission Core Reactor Quantum Reactor Propulsion Improved Gyrokinetic Inverter Treads Improved Heavy Treads Leg Improved Aluminum Leg Hover Unit Improved Gyrokinetic Inverter Flight Unit Flightbrick Utility Improved Signal Interpreter Device Improved Sensor Array Storage Medium Storage Unit Processor Improved Signal Interpreter Hackware Advanced Hacking Suite Protection Reflective Plating Weapon Precision Assault Rifle Energy Gun Riot Gun Energy Cannon Enhanced Nova Cannon Ballistic Gun Precision Assault Rifle Ballistic Cannon Slug Cannon Launcher Gamma Bomb Array Special Weapon Advanced Remote Datajack Impact Weapon Heavy Hammer Slashing Weapon Phasing Sabre Piercing Weapon Lance Build | -11 -10 -10 -10 -8 -7 -6 -6 -6 -6 -5 -5 -4 -4 -3 -2 -2 -1 ------- Run | Yrd Mat Min Sub Mat Fac Fac Low Low Dat Pro Fac Fac Ext Res Res Tes Acc Slots Evolved 18 | . . . . 4 2 2 . . . . 2 2 . 2 2 . 2 Power 2 | . . . . 1 . . . . . . . . . . 1 . . Propulsion 5 | . . . . 2 1 1 . . . . . . . . 1 . . Utility 10 | . . . . 1 1 1 . . . . 2 2 . 1 . . 2 Weapon 1 | . . . . . . . . . . . . . . 1 . . . Parts Attached 264 | 7 4 2 16 15 7 9 13 11 . 12 11 16 55 12 28 27 19 Power 35 | 1 . . . 3 . 3 . 1 . . 2 2 7 4 8 2 2 Engine 4 | 1 . . . 1 . 1 . 1 . . . . . . . . . Core 11 | . . . . 2 . 2 . . . . 2 1 3 . 1 . . Reactor 20 | . . . . . . . . . . . . 1 4 4 7 2 2 Propulsion 49 | 2 . 2 . 1 1 1 . . . . . 5 20 . 7 6 4 Treads 1 | . . . . . . . . . . . . 1 . . . . . Leg 22 | 2 . 2 . . . . . . . . . . 13 . 1 1 3 Wheel . | . . . . . . . . . . . . . . . . . . Hover 17 | . . . . . . . . . . . . . 6 . 5 5 1 Flight 9 | . . . . 1 1 1 . . . . . 4 1 . 1 . . Utility 89 | 1 2 . 6 8 2 3 7 . . 3 8 8 10 5 8 14 4 Device 34 | . . . 3 1 1 . 2 . . 2 3 6 2 2 6 4 2 Storage 9 | 1 1 . 2 2 . . . . . . . . . 1 1 1 . Processor 9 | . . . . 2 . 1 . . . . . . 1 . 1 3 1 Hackware 5 | . . . . . 1 . 1 . . . 2 . . . . . 1 Protection 32 | . 1 . 1 3 . 2 4 . . 1 3 2 7 2 . 6 . Artifact . | . . . . . . . . . . . . . . . . . . Weapon 91 | 3 2 . 10 3 4 2 6 10 . 9 1 1 18 3 5 5 9 Energy Gun 14 | 2 . . 4 1 . . . . . . . . 7 . . . . Energy Cannon 7 | . . . . . . . . . . . . . . 2 2 1 2 Ballistic Gun 25 | 1 2 . 4 2 2 1 3 5 . 5 . . . . . . . Ballistic Cannon 2 | . . . 1 . . 1 . . . . . . . . . . . Launcher 30 | . . . 1 . 2 . 3 5 . 4 . . 5 1 1 3 5 Special Weapon 1 | . . . . . . . . . . . . . . . 1 . . Impact Weapon 1 | . . . . . . . . . . . 1 . . . . . . Slashing Weapon 8 | . . . . . . . . . . . . . 4 . 1 1 2 Piercing Weapon 3 | . . . . . . . . . . . . 1 2 . . . . Special Melee Weapon . | . . . . . . . . . . . . . . . . . . Unidentified Prototypes 25 | . . . 1 2 1 2 . . . . . . 2 1 4 11 1 Parts Lost 49 | . . . . . . . 1 . . 2 . 4 3 2 7 6 24 Power 7 | . . . . . . . . . . 1 . . 1 . 2 1 2 Propulsion 14 | . . . . . . . . . . . . 2 . . 2 1 9 Utility 22 | . . . . . . . 1 . . 1 . 2 1 2 3 4 8 Weapon 6 | . . . . . . . . . . . . . 1 . . . 5 Highest Loss Streak 21 | . . . . . . . 1 . . 2 . 4 2 1 4 3 21 To Critical Strikes . | . . . . . . . . . . . . . . . . . . Average Slot Usage (%) 85 | . 91 100 94 59 79 78 81 82 82 73 81 77 78 85 81 81 77 Engine 5 | . 14 14 14 5 6 . . 5 5 1 . . . . . . . Core 2 | . . . . 8 6 11 11 5 5 5 9 6 4 . . . . Reactor 3 | . . . . . . . . . . . . 3 5 9 11 12 10 Leg 11 | . 28 28 28 . . . . . . . . . 9 . . . . Hover 5 | . . . . . . . . . . . . . . 28 29 28 22 Flight 5 | . . . . 6 13 14 17 17 17 17 16 12 6 . . . . Device 11 | . . . 11 2 13 11 11 11 11 7 13 18 16 14 17 13 14 Storage 4 | . 14 14 6 7 . . . . . . . . . 2 4 4 3 Processor 7 | . . . . 2 13 16 17 17 17 17 16 15 13 9 4 3 7 Hackware 2 | . . . . . 5 5 3 5 5 5 6 7 5 4 4 2 . Protection 5 | . 6 14 4 10 6 5 5 5 5 2 5 4 6 7 3 5 7 Energy Gun 3 | . 1 . 10 6 . . . . . . . . 6 . . . . Ballistic Gun 8 | . 26 28 9 . 12 11 10 10 11 7 9 5 . . . . . Ballistic Cannon 2 | . . . 7 4 . . . . . . . . . . . . . Naked Turns . | . . . . . . . . . . . . . . . . . . Heaviest Build 156 | 14 22 22 31 48 25 27 38 27 27 30 32 36 56 71 94 156 148 Greatest Support 135 | 20 20 26 26 26 29 35 35 35 35 35 35 39 135 72 84 86 86 Greatest Overweight (x) 14 | . 1 1 1 1 . . 1 . . . . 1 14 . 1 2 3 Average Overweight (x) . | . . . . . . . . . . . . . . . . . 1 Largest Inventory Capacity 10 | 8 10 10 10 10 5 5 5 5 5 5 5 5 5 10 10 10 8 Average Capacity 7 | 7 9 10 7 8 5 5 5 5 5 5 5 5 5 7 10 8 7 Most Carried 10 | 5 10 10 10 10 5 5 5 5 5 5 5 5 5 10 10 10 8 Average Carried 6 | 3 9 9 7 7 4 4 4 5 5 4 4 4 4 6 9 7 7 Final Capacity 10 | 8 10 10 10 5 5 5 5 5 5 5 5 5 5 10 10 8 5 Final Carried 10 | 5 10 10 10 5 5 5 5 5 5 5 5 5 5 10 10 8 . Class Distribution -------------------- 45% | Mutant 23% | Scout 21% | Scavenger-Mutant 3% | Hacker-Scout Dominant Class ---------------- Mutant | -10/Materials Mutant | -10/Mines Mutant | -10/Subcaves Mutant | -8/Materials Scout | -7/Factory Scout | -6/Factory Scout | -6/Lower Caves Scout | -6/Lower Caves Scout | -6/Data Miner Scout | -5/Proximity Caves Scout | -5/Factory Hacker-Scout | -4/Factory Scavenger-Mutant | -4/Extension Scavenger-Mutant | -3/Research Scavenger-Mutant | -2/Research Scavenger-Mutant | -2/Testing Scavenger-Mutant | -1/Access Resources | -11 -10 -10 -10 -8 -7 -6 -6 -6 -6 -5 -5 -4 -4 -3 -2 -2 -1 ----------- Run | Yrd Mat Min Sub Mat Fac Fac Low Low Dat Pro Fac Fac Ext Res Res Tes Acc Matter Collected 4609 | 242 108 129 430 266 134 75 462 147 . 284 . 180 924 127 240 597 264 Remotely . | . . . . . . . . . . . . . . . . . . Salvage Created 4976 | . . 54 35 81 32 . 251 52 . 276 . 158 367 228 288 2438 716 Parts 180 | . . 5 1 3 3 . 15 9 . 3 . 7 15 3 14 82 20 Haulers Intercepted 1 | . . . . . . . . . . . . . 1 . . . . Recyclers Shooed 1 | . . . . . . . . . . . . . . . . 1 . Parts Field Recycled . | . . . . . . . . . . . . . . . . . . Retrieved Matter . | . . . . . . . . . . . . . . . . . . Parts Self-Destructed 31 | . . . 10 . . . 14 5 . 2 . . . . . . . Prevented . | . . . . . . . . . . . . . . . . . . Kills | -11 -10 -10 -10 -8 -7 -6 -6 -6 -6 -5 -5 -4 -4 -3 -2 -2 -1 ------- Run | Yrd Mat Min Sub Mat Fac Fac Low Low Dat Pro Fac Fac Ext Res Res Tes Acc Combat Hostiles Destroyed 91 | . . 3 1 1 . . 10 7 . 9 . 2 10 4 6 26 12 Melee 4 | . . . . . . . . . . . . 2 . 1 . . 1 Guns 11 | . . 3 1 . . . 4 . . 2 . . 1 . . . . Cannons 12 | . . . . 1 . . . . . . . . . . 2 5 4 AOE 50 | . . . . . . . 6 7 . 7 . . 9 3 4 7 7 Classes Destroyed 15 | . . 1 1 2 . . 1 . . 2 . 1 1 1 . 4 1 Worker 3 | . . . . . . . . . . . . . . . . 2 1 Builder 4 | . . . . . . . . . . . . . . . . 3 1 Hauler 1 | . . . . . . . . . . . . . 1 . . . . Recycler 2 | . . . . . . . . . . . . . . 1 . . 1 Carrier 1 | . . . . . . . . . . . . . . . . 1 . Watcher 5 | . . . . 1 1 . . . . . . . 1 . 1 . 1 Swarmer 29 | . . 3 . . . . 4 7 . . . . 7 . 4 . 4 Saboteur 1 | . . . . . . . . . . . . . . . . . 1 Grunt 38 | . . . 1 . . . 4 . . 3 . . 2 4 1 18 5 Brawler 3 | . . . . . . . . . . 2 . . . . . . 1 Duelist 5 | . . . . . . . . . . 3 . . . . . 1 1 Researcher 1 | . . . . . . . . . . . . . . . . 1 . Sentry 5 | . . . . 1 . . 1 . . 1 . . 1 . 1 . . Hunter 7 | . . . . . . . . . . . . 2 . . . 5 . Programmer 3 | . . . . . . . 1 . . . . . . . . 2 . Best Kill Streak 12 | . . 3 1 1 1 . 4 4 . 7 . 2 4 5 4 12 6 Combat Bots Only 12 | . . 3 1 1 . . 4 4 . 7 . 2 4 4 4 12 4 Max Kills in Single Turn 4 | . . 1 1 1 1 . 3 4 . 4 . 1 4 3 4 3 3 Gunslinging . | . . . . . . . . . . . . . . . . . . Exploded 4 | . . . . . . . 3 4 . 4 . . 4 3 4 3 3 Melee 1 | . . . . . . . . . . . . 1 . 1 . . 1 Uniques/NPCs Destroyed . | . . . . . . . . . . . . . . . . . . Combat | -11 -10 -10 -10 -8 -7 -6 -6 -6 -6 -5 -5 -4 -4 -3 -2 -2 -1 -------- Run | Yrd Mat Min Sub Mat Fac Fac Low Low Dat Pro Fac Fac Ext Res Res Tes Acc Hostile Shots Fired 1052 | . . 17 6 1 . . 84 4 . 38 . 82 64 53 88 190 425 Missed 309 | . . 2 3 . . . 31 2 . 22 . 31 17 24 32 47 98 Damage Taken 13980 | . . 120 55 9 30 . 675 30 . 464 . 831 1192 574 1378 3043 5579 Core 2482 | . . 22 . . 30 . 9 . . 78 . 46 135 86 245 226 1605 Absorbed by Shields 2618 | . . . . . . . . . . . . . 121 . 49 370 2078 Redirected to Shielding 3 | . . 3 . . . . . . . . . . . . . . . Ignored by Resistances 49 | . . . . . . . 42 . . 7 . . . . . . . Regen/Repaired (Parts) 1950 | . . . . . . . . . . . . . . 102 136 1012 700 Core Remaining (%) 91 | 100 . . 91 100 95 . . . . 89 100 . 84 93 . 67 . Volleys Fired 289 | . . 5 40 4 7 . 26 4 . 12 . . 46 8 22 88 27 Largest 2 | . . 2 2 2 2 . 2 2 . 2 . . 2 1 1 1 2 Hottest 250 | . . 46 60 98 56 . 66 66 . 66 . . 240 110 120 130 250 Shots Fired 344 | . . 10 43 7 11 . 38 7 . 24 . . 52 8 22 89 33 Gun 118 | . . 10 15 4 8 . 30 . . 14 . . 37 . . . . Cannon 145 | . . . 21 3 . . . . . . . . . 3 21 72 25 Launcher 81 | . . . 7 . 3 . 8 7 . 10 . . 15 5 1 17 8 Special . | . . . . . . . . . . . . . . . . . . Kinetic 93 | . . 10 27 3 8 . 30 . . 14 . . 1 . . . . Thermal 163 | . . . 9 . . . . . . . . . 36 . 21 72 25 Explosive 62 | . . . 7 . 3 . 8 7 . 10 . . 15 5 1 . 6 Electromagnetic 25 | . . . . 4 . . . . . . . . . 3 . 17 1 Robot Hit Streak 10 | . . 7 8 4 2 . 9 5 . 10 . . 6 9 10 9 8 Robot Miss Streak 7 | . . 1 3 7 2 . 2 . . 1 . . 3 . 1 6 5 Penetration Max . | . . . . . . . . . . . . . . . . . . Secondary Targets 2 | . . 1 1 . . . . . . . . . . . . . . Max Gunslinging Chain 1 | . . 1 1 . . . . . . . . . . . . . . Capacitor 48 | . . . . . . . . . . . . . 23 3 21 1 . Shots Hit Robots 170 | . . 8 4 4 4 . 22 1 . 11 . 10 18 7 15 44 22 Core Hits 240 | . . 3 2 5 2 . 25 12 . 33 . 5 32 11 11 73 26 Critical Kills 1 | . . . . . . . . . . . . . . . . 1 . Critical Parts Destroyed . | . . . . . . . . . . . . . . . . . . Critical Strikes 2 | . . . . . . . . . . . . . 1 . . 1 . Burn 1 | . . . . . . . . . . . . . 1 . . . . Meltdown 1 | . . . . . . . . . . . . . . . . 1 . Melee Attacks 43 | . . . . . . . . . . . 2 22 4 7 . 2 6 Impact 5 | . . . . . . . . . . . 2 3 . . . . . Slashing 17 | . . . . . . . . . . . . . 2 7 . 2 6 Piercing 21 | . . . . . . . . . . . . 19 2 . . . . Sneak Attacks 2 | . . . . . . . . . . . . . . 1 . . 1 Combat Hostiles . | . . . . . . . . . . . . . . . . . . Follow-up Attacks . | . . . . . . . . . . . . . . . . . . Damage Inflicted 16051 | . . 130 70 108 76 . 1392 568 . 1389 . 326 1959 1248 1136 5158 2491 Guns 1415 | . . 122 70 59 76 . 445 . . 201 . . 442 . . . . Cannons 4552 | . . . . 49 . . . . . . . . . 116 760 2422 1205 Explosions 9255 | . . . . . . . 947 568 . 1188 . . 1408 894 376 2736 1138 Melee 821 | . . . . . . . . . . . . 326 109 238 . . 148 Ramming 8 | . . 8 . . . . . . . . . . . . . . . Kinetic 980 | . . 122 70 49 76 . 445 . . 201 . . 17 . . . . Thermal 5232 | . . . . . . . . . . . . . 425 . 760 2842 1205 Explosive 6395 | . . . . . . . 947 568 . 1188 . . 1408 894 376 119 895 Electromagnetic 2615 | . . . . 59 . . . . . . . . . 116 . 2197 243 Impact . | . . . . . . . . . . . . . . . . . . Slashing 456 | . . . . . . . . . . . . . 70 238 . . 148 Piercing 365 | . . . . . . . . . . . . 326 39 . . . . Highest Corruption 12 | . . . . . . . 5 5 5 5 . . 2 . 2 12 12 Average Corruption 4 | . . . . . . . 4 5 5 5 . . 1 . 2 4 8 Corruption Purged . | . . . . . . . . . . . . . . . . . . Corruption Blocked . | . . . . . . . . . . . . . . . . . . Effects 65 | . . . . . . . 14 9 1 8 . . 9 . . 24 . Message Errors 16 | . . . . . . . 2 3 . 2 . . 2 . . 7 . Matter Fused 21 | . . . . . . . 6 2 . 4 . . 2 . . 7 . Heat Flow Errors 6 | . . . . . . . 1 2 . 1 . . . . . 2 . Energy Discharges 4 | . . . . . . . . 1 . 1 . . . . . 2 . Parts Rejected 1 | . . . . . . . 1 . . . . . . . . . . Data Loss (minor) 9 | . . . . . . . 2 . 1 . . . 3 . . 3 . Data Loss (major) 4 | . . . . . . . . 1 . . . . 1 . . 2 . Misfires 2 | . . . . . . . . . . . . . 1 . . 1 . Weapon Failures 2 | . . . . . . . 2 . . . . . . . . . . Overload Shots 5 | . . . . . . . . . . . . . 5 . . . . Overflow Damage 396 | . . . . . . . 1 5 . 5 . . 59 5 71 135 115 Projectiles 166 | . . . . . . . . . . . . . . . 25 110 31 Explosions 194 | . . . . . . . 1 5 . 5 . . 59 5 46 25 48 Melee 36 | . . . . . . . . . . . . . . . . . 36 Knockbacks . | . . . . . . . . . . . . . . . . . . Impact . | . . . . . . . . . . . . . . . . . . Kinetic . | . . . . . . . . . . . . . . . . . . Secondary . | . . . . . . . . . . . . . . . . . . Self-Inflicted Damage 423 | . . . . . 30 . 42 . . 41 . . 36 . 100 174 . Shots 12 | . . . . . 1 . 1 . . 1 . . 1 . 1 7 . Rammed . | . . . . . . . . . . . . . . . . . . Targets Rammed 4 | . . 4 . . . . . . . . . . . . . . . Kicked 4 | . . 4 . . . . . . . . . . . . . . . Crushed . | . . . . . . . . . . . . . . . . . . Highest Temperature 480 | . . . . 121 30 49 249 317 73 170 . . 480 127 457 204 198 Average Temperature 87 | . . . . 49 15 15 97 64 37 33 . . 158 65 109 114 94 Received Heat Transfer 1164 | . . . 15 . . . 183 . . 54 . 9 209 175 108 171 240 Effects 15 | . . . . . . . . . . . . . 1 . 14 . . Shutdowns 5 | . . . . . . . . . . . . . . . 5 . . Matter Decay 2 | . . . . . . . . . . . . . 1 . 1 . . Short Circuit 1 | . . . . . . . . . . . . . . . 1 . . Damage (minor) 1 | . . . . . . . . . . . . . . . 1 . . Damage (major) 6 | . . . . . . . . . . . . . . . 6 . . Siege Activations . | . . . . . . . . . . . . . . . . . . Robots Corrupted 12 | . . . . . . . . . . . . . . . . 12 . Combat Hostiles 12 | . . . . . . . . . . . . . . . . 12 . Parts Fried 16 | . . . . . . . . . . . . . . . . 16 . Impact Corruptions . | . . . . . . . . . . . . . . . . . . Robots Melted 3 | . . . . . . . . . . . . . 1 . . 2 . Combat Hostiles 2 | . . . . . . . . . . . . . . . . 2 . Parts Melted 9 | . . . . . . . . . . . . . 2 . 1 5 1 Heat Transferred 3866 | . . . . . . . . . . . . . 641 . 592 1874 759 Parts Sabotaged . | . . . . . . . . . . . . . . . . . . Parts Stolen . | . . . . . . . . . . . . . . . . . . Parts Stripped . | . . . . . . . . . . . . . . . . . . Power Chain Reactions 4 | . . . . . . . . . . . . . . . . 4 . Alert | -11 -10 -10 -10 -8 -7 -6 -6 -6 -6 -5 -5 -4 -4 -3 -2 -2 -1 ------- Run | Yrd Mat Min Sub Mat Fac Fac Low Low Dat Pro Fac Fac Ext Res Res Tes Acc Peak Influence 1367 | . 20 75 . 146 210 110 . . . . 143 167 1367 1089 921 1243 1131 Initial 745 | . . 5 . . 65 102 . . . . 133 70 81 717 508 497 745 Average 391 | . 12 27 . 75 106 64 . . . . 135 60 686 849 689 711 936 Maximum Alert Level 4 | . . . . . 1 . . . . . . . 4 4 3 4 4 Low Security (%) 53 | 100 100 100 . 100 95 100 . . . . 100 100 8 . . . . Level 1 3 | . . . . . 4 . . . . . . . 20 . . . . Level 2 14 | . . . . . . . . . . . . . 32 2 36 58 . Level 3 22 | . . . . . . . . . . . . . 13 97 63 25 85 Level 4 6 | . . . . . . . . . . . . . 24 . . 15 14 Level 5 . | . . . . . . . . . . . . . . . . . . High Security . | . . . . . . . . . . . . . . . . . . Max Security . | . . . . . . . . . . . . . . . . . . Squads Dispatched 34 | . . . . . 1 . . . . 1 1 3 7 5 3 9 4 Investigation 9 | . . . . . . . . . . . . 2 3 2 . 2 . Extermination 6 | . . . . . . . . . . . 1 1 . . 1 2 1 Reinforcement 12 | . . . . . 1 . . . . . . . 3 2 1 3 2 Assault 6 | . . . . . . . . . . 1 . . 1 1 . 2 1 Garrison 1 | . . . . . . . . . . . . . . . 1 . . Intercept . | . . . . . . . . . . . . . . . . . . Searches Triggered . | . . . . . . . . . . . . . . . . . . Construction Impeded 2 | . . . . . . . . . . . . . 1 . . . 1 Haulers Reinforced 1 | . . . . . . . . . . . . . . . 1 . . Active Scanning Responses . | . . . . . . . . . . . . . . . . . . Cargo Convoy Interrupts . | . . . . . . . . . . . . . . . . . . Stealth | -11 -10 -10 -10 -8 -7 -6 -6 -6 -6 -5 -5 -4 -4 -3 -2 -2 -1 --------- Run | Yrd Mat Min Sub Mat Fac Fac Low Low Dat Pro Fac Fac Ext Res Res Tes Acc Distress Signals 4 | . . . . 2 . . . . . . . . 2 . . . . Communications Jammed . | . . . . . . . . . . . . . . . . . . Distress Signals . | . . . . . . . . . . . . . . . . . . Times Spotted 230 | . 2 3 9 6 2 . 8 5 . 16 . 11 32 18 34 39 45 Peak Tracking Total 15 | . 2 3 2 5 2 . 4 4 . 10 1 4 7 7 12 8 15 Tactical Retreats 26 | . . . . 1 . . . . . 2 . 2 3 7 5 2 4 Traps | -11 -10 -10 -10 -8 -7 -6 -6 -6 -6 -5 -5 -4 -4 -3 -2 -2 -1 ------- Run | Yrd Mat Min Sub Mat Fac Fac Low Low Dat Pro Fac Fac Ext Res Res Tes Acc Traps Triggered 6 | . . . . . . . . . . . . . . 2 2 2 . Indirectly . | . . . . . . . . . . . . . . . . . . Trap Hack Attempts . | . . . . . . . . . . . . . . . . . . Triggered . | . . . . . . . . . . . . . . . . . . Disarmed . | . . . . . . . . . . . . . . . . . . Reprogrammed . | . . . . . . . . . . . . . . . . . . Reused . | . . . . . . . . . . . . . . . . . . Traps Extracted . | . . . . . . . . . . . . . . . . . . Installed . | . . . . . . . . . . . . . . . . . . Triggered 2 | . . . . . . . . . . . . . . 2 . . . Machines | -11 -10 -10 -10 -8 -7 -6 -6 -6 -6 -5 -5 -4 -4 -3 -2 -2 -1 ---------- Run | Yrd Mat Min Sub Mat Fac Fac Low Low Dat Pro Fac Fac Ext Res Res Tes Acc Machines Disabled 16 | . . . 1 . 3 . . . . . . . 3 1 1 7 . Max in Single Turn 1 | . . . 1 . 1 . . . . . . . 1 1 1 1 . Garrison Access 1 | . . . . 1 . . . . . . . . . . . . . Machines Repaired . | . . . . . . . . . . . . . . . . . . Machines Dismantled . | . . . . . . . . . . . . . . . . . . Machines Sabotaged . | . . . . . . . . . . . . . . . . . . Overloaded Fab Kills . | . . . . . . . . . . . . . . . . . . Hacking | -11 -10 -10 -10 -8 -7 -6 -6 -6 -6 -5 -5 -4 -4 -3 -2 -2 -1 --------- Run | Yrd Mat Min Sub Mat Fac Fac Low Low Dat Pro Fac Fac Ext Res Res Tes Acc Machines Accessed 42 | . 3 . 1 1 2 2 1 . 4 . 2 7 8 4 3 3 1 Terminals 26 | . 3 . . . 1 1 . . . . 2 6 7 2 1 2 1 Fabricators 1 | . . . . . . . . . . . . . . 1 . . . Repair Stations 2 | . . . . . . . . . . . . . 1 . 1 . . Recycling Units . | . . . . . . . . . . . . . . . . . . Scanalyzers 5 | . . . . . 1 1 . . . . . . . 1 1 1 . Garrison Access 2 | . . . . 1 . . . . . . . 1 . . . . . Total Hacks 128 | . 8 . 1 2 4 4 1 . 29 . 4 19 27 14 8 5 2 Successful 86 | . 5 . 1 2 3 3 1 . 29 . 2 12 15 10 2 1 . Failed 41 | . 3 . . . 1 1 . . . . 2 6 12 4 6 4 2 Catastrophic 5 | . 1 . . . . . . . . . . 2 1 . 1 . . Database Lockouts 1 | . . . . . . . . . . . . 1 . . . . . Manual 36 | . 5 . . . 1 2 . . . . 3 15 6 1 1 2 . Terminals 68 | . 8 . . . 1 2 . . . . 4 18 25 3 1 4 2 Fabricators 2 | . . . . . . . . . . . . . . 2 . . . Repair Stations 4 | . . . . . . . . . . . . . 2 . 2 . . Recycling Units . | . . . . . . . . . . . . . . . . . . Scanalyzers 20 | . . . . . 3 2 . . . . . . . 9 5 1 . Garrison Access 3 | . . . . 2 . . . . . . . 1 . . . . . Terminal Hacks 55 | . 2 . 1 . 1 . 1 . 29 . 1 7 12 . . 1 . Record 17 | . . . . . . . . . 11 . . 1 5 . . . . Part Schematic 13 | . . . . . 1 . . . 8 . . 1 3 . . . . Robot Schematic 7 | . . . . . . . . . 7 . . . . . . . . Robot Analysis 1 | . . . . . . . . . . . . . 1 . . . . Prototype ID Bank 3 | . . . . . . . . . 3 . . . . . . . . Open Door 2 | . . . . . . . 1 . . . . . . . . 1 . Branch Access Points 2 | . 1 . . . . . . . . . . 1 . . . . . Terminal Index 1 | . . . . . . . . . . . . 1 . . . . . Unreport Threat 1 | . . . . . . . . . . . . 1 . . . . . Locate Traps 3 | . . . . . . . . . . . 1 1 1 . . . . Recall Investigation 1 | . . . . . . . . . . . . . 1 . . . . Recall Extermination 1 | . . . . . . . . . . . . 1 . . . . . Recall Reinforcements 1 | . . . . . . . . . . . . . 1 . . . . Zone Layout 1 | . 1 . . . . . . . . . . . . . . . . Derelict Proto ID Bank 1 | . . . 1 . . . . . . . . . . . . . . Fabricator Hacks 2 | . . . . . . . . . . . . . . 2 . . . Load Schematic 1 | . . . . . . . . . . . . . . 1 . . . Build 1 | . . . . . . . . . . . . . . 1 . . . Repair Station Hacks 1 | . . . . . . . . . . . . . 1 . . . . Scan Component 1 | . . . . . . . . . . . . . 1 . . . . Recycling Unit Hacks . | . . . . . . . . . . . . . . . . . . Scanalyzer 14 | . . . . . 2 2 . . . . . . . 8 2 . . Insert Component 6 | . . . . . 1 1 . . . . . . . 2 2 . . Analyze 8 | . . . . . 1 1 . . . . . . . 6 . . . Garrison Access Hacks 2 | . . . . 2 . . . . . . . . . . . . . Seal Access 1 | . . . . 1 . . . . . . . . . . . . . Coupler Status 1 | . . . . 1 . . . . . . . . . . . . . Unauthorized Hacks 12 | . 3 . . . . 1 . . . . 1 5 2 . . . . Terminals 11 | . 3 . . . . 1 . . . . 1 4 2 . . . . Assimilate 2 | . . . . . . . . . . . . 2 . . . . . Botnet 8 | . 2 . . . . 1 . . . . 1 2 2 . . . . Operators 1 | . 1 . . . . . . . . . . . . . . . . Fabricators . | . . . . . . . . . . . . . . . . . . Repair Stations . | . . . . . . . . . . . . . . . . . . Recycling Units . | . . . . . . . . . . . . . . . . . . Scanalyzers . | . . . . . . . . . . . . . . . . . . Garrison Access 1 | . . . . . . . . . . . . 1 . . . . . Reprogram 1 | . . . . . . . . . . . . 1 . . . . . Data Cores Recovered . | . . . . . . . . . . . . . . . . . . Used . | . . . . . . . . . . . . . . . . . . Hacking Detections 32 | . 2 . . 1 1 1 . . . . 2 7 8 4 3 2 1 Full Trace Events 6 | . . . . . . . . . . . . 1 3 1 . 1 . Feedback Events 1 | . . . . . . . . . . . . . 1 . . . . Corruption 1 | . . . . . . . . . . . . . 1 . . . . Feedback Blocked . | . . . . . . . . . . . . . . . . . . Robot Schematics Acquired 9 | . . . . . . . . . 7 . . . . . . 2 . Robots Built . | . . . . . . . . . . . . . . . . . . Authchips . | . . . . . . . . . . . . . . . . . . Time . | . . . . . . . . . . . . . . . . . . Total Robot Build Rating . | . . . . . . . . . . . . . . . . . . Part Schematics Acquired 20 | . . . . . 2 1 . . 8 . . 1 2 2 . 4 . Parts Built 1 | . . . . . . . . . . . . . . 1 . . . Authchips . | . . . . . . . . . . . . . . . . . . Time 50 | . . . . . . . . . . . . . . 50 . . . Total Part Build Rating 5 | . . . . . . . . . . . . . . 5 . . . Parts Repaired . | . . . . . . . . . . . . . . . . . . Time . | . . . . . . . . . . . . . . . . . . Parts Recycled . | . . . . . . . . . . . . . . . . . . Recycled Matter . | . . . . . . . . . . . . . . . . . . Retrieved Matter . | . . . . . . . . . . . . . . . . . . Retrieved Components . | . . . . . . . . . . . . . . . . . . Parts Scanalyzed 6 | . . . . . 1 1 . . . . . . . 2 2 . . Part Schematics Acquired 4 | . . . . . 1 1 . . . . . . . 2 . . . Parts Damaged 1 | . . . . . . . . . . . . . . . 1 . . Bothacking | -11 -10 -10 -10 -8 -7 -6 -6 -6 -6 -5 -5 -4 -4 -3 -2 -2 -1 ------------ Run | Yrd Mat Min Sub Mat Fac Fac Low Low Dat Pro Fac Fac Ext Res Res Tes Acc Used RIF Installer . | . . . . . . . . . . . . . . . . . . Robots Hacked . | . . . . . . . . . . . . . . . . . . Non-combat . | . . . . . . . . . . . . . . . . . . Combat . | . . . . . . . . . . . . . . . . . . Robot Hacks Applied . | . . . . . . . . . . . . . . . . . . Relay Couplers Released . | . . . . . . . . . . . . . . . . . . Fabnet Peak Effective % . | . . . . . . . . . . . . . . . . . . Robots Rewired 12 | . . . . . . . . . . 2 . . 9 . . 1 . Allies Hacked 1 | . . . . . . . . . . . . 1 . . . . . Hacks Repelled . | . . . . . . . . . . . . . . . . . . Allies | -11 -10 -10 -10 -8 -7 -6 -6 -6 -6 -5 -5 -4 -4 -3 -2 -2 -1 -------- Run | Yrd Mat Min Sub Mat Fac Fac Low Low Dat Pro Fac Fac Ext Res Res Tes Acc Total Allies 27 | . . . 6 . . . . . . 2 . 5 13 . . 1 . Largest Group 10 | . . . 4 3 . . . . . 2 . 4 10 4 . 1 . Highest-Rated Group 495 | . . . 76 57 . . . . . 59 . 188 495 272 . 156 . Highest-Rated Ally 159 | . . . 19 19 . . . . . 30 . 47 159 142 . 156 . Total Orders 1 | . . . . . . . . . . . . 1 . . . . . STAY 1 | . . . . . . . . . . . . 1 . . . . . Ally Attacks 185 | . . . 14 26 . . . . . 5 . 2 130 8 . . . Total Damage 4646 | . . . 156 375 . . . . . 56 . 76 3697 286 . . . Kills 37 | . . . 1 3 . . . . . 1 . 1 31 . . . . Allies Corrupted . | . . . . . . . . . . . . . . . . . . Allies Melted 1 | . . . . . . . 1 . . . . . . . . . . Intel | -11 -10 -10 -10 -8 -7 -6 -6 -6 -6 -5 -5 -4 -4 -3 -2 -2 -1 ------- Run | Yrd Mat Min Sub Mat Fac Fac Low Low Dat Pro Fac Fac Ext Res Res Tes Acc Robot Analysis Total 1 | . . . . . . . . . . . . . 1 . . . . Derelict Logs Recovered 6 | . . 1 2 . . . 1 1 . 1 . . . . . . . Drone Launches . | . . . . . . . . . . . . . . . . . . Drone Recoveries . | . . . . . . . . . . . . . . . . . . Exploration | -11 -10 -10 -10 -8 -7 -6 -6 -6 -6 -5 -5 -4 -4 -3 -2 -2 -1 ------------- Run | Yrd Mat Min Sub Mat Fac Fac Low Low Dat Pro Fac Fac Ext Res Res Tes Acc Turns Passed 11270 | 57 548 841 2927 330 241 674 524 363 38 336 268 730 1082 401 524 775 611 Spaces Moved 10443 | 42 292 409 2019 352 355 450 857 487 94 679 387 1081 802 512 631 555 439 Core 13 | 11 . . . . . . . . . . . . 2 . . . . Treads . | . . . . . . . . . . . . . . . . . . Legs 3009 | 31 292 409 2019 10 . . . . . . . . 248 . . . . Wheels . | . . . . . . . . . . . . . . . . . . Hover 2153 | . . . . . . . . . . . . . 16 512 631 555 439 Flight 5268 | . . . . 342 355 450 857 487 94 679 387 1081 536 . . . . Fastest Speed 32 | 50 120 120 120 40 34 32 32 32 32 32 32 32 37 50 37 45 88 Average Speed 76 | 101 182 162 136 59 34 33 32 32 32 32 32 39 95 50 54 87 98 Slowest Speed 750 | 120 190 190 190 120 34 34 98 32 32 32 32 97 750 50 94 139 186 Overloaded Moves . | . . . . . . . . . . . . . . . . . . Propulsion Burnouts . | . . . . . . . . . . . . . . . . . . Robots Hopped 5 | . . . . . 1 . 1 . . . 1 . 2 . . . . Cave-ins Triggered 2 | . . . . . . . . . . . . . 1 . . . 1 Exploration Rate (%) 38 | 4 68 41 83 23 10 12 82 58 70 64 8 18 66 12 17 46 12 Regions Visited 17 Branch Regions 8 Pre-discovered Areas 3 | . . 1 1 . . . . . 1 . . . . . . . . Known Exits Taken 13 | . 1 . . 1 1 1 1 1 1 1 1 1 1 1 1 . . Unknown Exits Taken 4 | 1 . 1 1 . . . . . . . . . . . . 1 . Scrap Searched 18 | . . . 12 . . . 3 2 . 1 . . . . . . . Spaces Dug 50 | . . . 8 . . . . 10 . . 1 5 15 1 3 5 2 Terrain Destroyed 619 | . . . 38 1 25 . 60 50 . 40 1 5 213 21 50 91 24 Melee 9 | . . . . . . . . . . . 1 5 . 1 . 1 1 Projectile 55 | . . . 5 1 . . . . . . . . 16 . 4 21 8 AOE 555 | . . . 33 . 25 . 60 50 . 40 . . 197 20 46 69 15 Terrain Rammed . | . . . . . . . . . . . . . . . . . . Walls Destroyed . | . . . . . . . . . . . . . . . . . . Machines Disabled . | . . . . . . . . . . . . . . . . . . Actions | -11 -10 -10 -10 -8 -7 -6 -6 -6 -6 -5 -5 -4 -4 -3 -2 -2 -1 --------- Run | Yrd Mat Min Sub Mat Fac Fac Low Low Dat Pro Fac Fac Ext Res Res Tes Acc Total 13346 | 53 315 574 2152 471 460 974 1059 682 101 770 524 1350 1080 639 810 754 578 Wait 1927 | . . 151 32 59 91 505 156 180 8 54 118 216 60 83 98 49 67 Move 10415 | 41 291 408 2018 351 352 449 854 486 93 678 384 1080 796 511 630 554 439 Hop 5 | . . . . . 1 . 1 . . . 1 . 2 . . . . Pick Up 93 | 4 11 2 15 19 2 2 3 . . 3 2 3 7 9 5 5 1 Fast Attach 140 | 7 4 . 13 9 1 8 3 . . 1 7 7 33 7 12 21 7 Attach 42 | . . . . 4 2 . 2 . . 2 1 5 4 3 6 3 10 Detach 27 | 1 . . . . . . 1 . . . . 4 5 2 7 5 2 Swap 84 | . . 2 3 2 4 1 8 11 . 9 3 4 18 3 10 4 2 Drop 190 | . 9 2 30 23 . 9 5 1 . 4 6 9 46 6 14 17 9 Fire 289 | . . 5 40 4 7 . 26 4 . 12 . . 46 8 22 88 27 Melee 43 | . . . . . . . . . . . 2 22 4 7 . 2 6 Ram . | . . . . . . . . . . . . . . . . . . Kick 4 | . . 4 . . . . . . . . . . . . . . . Crush . | . . . . . . . . . . . . . . . . . . Escape Stasis 18 | . . . . . . . . . . . . . 1 . 6 3 8 Rewire 68 | . . . . . . . . . . 7 . . 58 . . 3 . Trap . | . . . . . . . . . . . . . . . . . . Miscellaneous 1 | . . . 1 . . . . . . . . . . . . . . Route ------- -11/Scrapyard -10/Materials (discovered 2 exits: [*Mat] / *Min) -10/Mines (discovered 2 exits: [*Mat] / *Sub) -10/Subcaves (discovered 3 exits: *Mat x2 / Rec) -8/Materials -7/Factory -6/Factory -6/Lower Caves -6/Lower Caves -6/Data Miner -5/Proximity Caves -5/Factory (discovered 3 exits: *Fac x2 / *Upp) -4/Factory (discovered 4 exits: Upp x2 / *Ext x2) -4/Extension (discovered 2 exits: *Res / [*Cet]) -3/Research -2/Research -2/Testing -1/Access History --------- Turn | Location | Event 8 | -11/Scrapyard | Discovered new exit (range 14) 58 | -11/Scrapyard | Entered Materials 265 | -10/Materials | Identified exit to Mines 314 | -10/Materials | Build established: Mutant 365 | -10/Materials | Discovered new exit (range 10) 606 | -10/Materials | Entered Mines 660 | -10/Mines | Learned location of Zion (-7) 1047 | -10/Mines | Discovered new exit (range 9) 1175 | -10/Mines | YI-UF0 nonchalantly dropped a Grenade Launcher on the ground 1438 | -10/Mines | Discovered new exit (range 7) 1447 | -10/Mines | Entered Subcaves 1459 | -10/Subcaves | Discovered new exit (range 13) 1553 | -10/Subcaves | A swath of the cavern ceiling suddenly collapsed 1843 | -10/Subcaves | Shifting Twisted Machinery released Sub. Power Source 1948 | -10/Subcaves | Discovered new exit (range 13) 1959 | -10/Subcaves | Shifting Twisted Machinery released Sub. Power Source 2358 | -10/Subcaves | Shifting Twisted Machinery released Sub. Machine Gun 2405 | -10/Subcaves | Visited triangular shrine 2417 | -10/Subcaves | Found Prototype Device 2417 | -10/Subcaves | Identified V3-11A's Pendant 2422 | -10/Subcaves | Befriended Subdweller 2660 | -10/Subcaves | Learned Materials security intel 2673 | -10/Subcaves | Shifting Twisted Machinery released Shrapnel Trap 2792 | -10/Subcaves | Befriended Subdweller 2842 | -10/Subcaves | Befriended Subdweller 2872 | -10/Subcaves | Befriended Subdweller 2962 | -10/Subcaves | Disturbed a concealed Subdweller 2962 | -10/Subcaves | Befriended Subdweller 3503 | -10/Subcaves | Met a Zionite searching for "candidates" 3565 | -10/Subcaves | Disturbed a concealed Subdweller 3567 | -10/Subcaves | Befriended Subdweller 3709 | -10/Subcaves | Identified exit to Recycling 3733 | -10/Subcaves | Visited 4L-MR0's lab 3752 | -10/Subcaves | Found Flightbrick 3953 | -10/Subcaves | A swath of the cavern ceiling suddenly collapsed 4374 | -10/Subcaves | Entered Materials 4374 | -8/Materials | Accompanied by 3 allies 4374 | -8/Materials | Evolved 4 slots: Power x1, Propulsion x2, Utility x1 4390 | -8/Materials | Attached Flightbrick, gained temporary slots: Utility x3 4692 | -8/Materials | Discovered new exit (range 16) 4704 | -8/Materials | Identified exit to Factory 4704 | -8/Materials | Entered Factory 4704 | -7/Factory | Evolved 2 slots: Propulsion x1, Utility x1 4864 | -7/Factory | Discovered new exit (range 10) 4867 | -7/Factory | Identified exit to Factory 4895 | -7/Factory | Build established: Scout 4945 | -7/Factory | Entered another Factory area 4945 | -6/Factory | Evolved 2 slots: Propulsion x1, Utility x1 5287 | -6/Factory | Spotted B-75 Beast 5314 | -6/Factory | Discovered new exit (range 5) 5315 | -6/Factory | Identified exit to Lower Caves 5619 | -6/Factory | Entered Lower Caves 5975 | -6/Lower Caves | Attracted the attention of an 0b10 checkpoint 6002 | -6/Lower Caves | Learned Factory interactive machine intel 6125 | -6/Lower Caves | Discovered new exit (range 5) 6126 | -6/Lower Caves | Identified exit to Lower Caves 6143 | -6/Lower Caves | Entered another Lower Caves area 6366 | -6/Lower Caves | Learned Factory emergency access door positions 6498 | -6/Lower Caves | Discovered new exit (range 9) 6506 | -6/Lower Caves | Identified exit to Data Miner 6506 | -6/Lower Caves | Entered Data Miner 6506 | -6/Data Miner | Discovered new exit (range 6) 6512 | -6/Data Miner | Identified exit to Proximity Caves 6516 | -6/Data Miner | Met Data Miner 6523 | -6/Data Miner | Learned location of Section 7 (-3) 6523 | -6/Data Miner | Acquired the access code to Warlord's prototype stash 6529 | -6/Data Miner | Received God Mode back door access code from Data Miner 6544 | -6/Data Miner | Entered Proximity Caves 6553 | -5/Proximity Caves | Learned 4 Factory zone layouts 6621 | -5/Proximity Caves | Attracted the attention of an 0b10 outpost 6658 | -5/Proximity Caves | Destroyed 7 combat bots 6868 | -5/Proximity Caves | Attracted the attention of an 0b10 checkpoint 6879 | -5/Proximity Caves | Discovered new exit (range 7) 6880 | -5/Proximity Caves | Identified exit to Factory 6880 | -5/Proximity Caves | Entered Factory 6880 | -5/Factory | Evolved 2 slots: Utility x2 6883 | -5/Factory | Loaded intel: 52 interactive machine locations 6941 | -5/Factory | Discovered new exit (range 4) 6942 | -5/Factory | Identified exit to Factory 6959 | -5/Factory | Discovered exit to Factory (range 15) 7000 | -5/Factory | Discovered new exit (range 11) 7004 | -5/Factory | Identified exit to Upper Caves 7148 | -5/Factory | Entered another Factory area 7148 | -4/Factory | Evolved 2 slots: Utility x2 7276 | -4/Factory | Identified exit to Upper Caves 7276 | -4/Factory | Identified exit to Extension 7382 | -4/Factory | Build established: Hacker-Scout 7400 | -4/Factory | Central database locked down 7585 | -4/Factory | Lost 4 parts (2n2u) 7878 | -4/Factory | Entered Extension 7895 | -4/Extension | Rescued a captive Derelict 7898 | -4/Extension | Rescued a captive Derelict 8004 | -4/Extension | Rescued a captive Derelict 8078 | -4/Extension | Found Quantum Capacitor 8312 | -4/Extension | Rescued A7 8390 | -4/Extension | Crushed by falling debris 8628 | -4/Extension | First assault squad dispatched 8836 | -4/Extension | Lost 6 allies 8883 | -4/Extension | Build established: Scavenger-Mutant 8888 | -4/Extension | Discovered new exit (range 10) 8889 | -4/Extension | Discovered new exit (range 6) 8898 | -4/Extension | Identified exit to Research 8960 | -4/Extension | Entered Research 8960 | -3/Research | Accompanied by 4 allies (A7) 8960 | -3/Research | Evolved 2 slots: Utility x1, Weapon x1 9042 | -3/Research | Fabricated Lgt. Regenerative Plating (x1) 9055 | -3/Research | Found Prototype Device 9055 | -3/Research | Identified Exp. Thermal Shield 9210 | -3/Research | First assault squad dispatched 9342 | -3/Research | Discovered new exit (range 13) 9360 | -3/Research | Identified exit to Research 9361 | -3/Research | Entered another Research area 9361 | -2/Research | Evolved 2 slots: Power x1, Propulsion x1 9699 | -2/Research | Found Gamma Bomb Array 9829 | -2/Research | Garrison activated, responded to threat 9864 | -2/Research | Discovered new exit (range 10) 9882 | -2/Research | Lost 4 parts (1p2n1u) 9883 | -2/Research | Identified exit to Testing 9885 | -2/Research | Entered Testing 9894 | -2/Testing | Spotted PH-MZIZTGBIK5 9900 | -2/Testing | Rewired PH-MZIZTGBIK5 9909 | -2/Testing | Protovariant out of control (PH-MZIZTGBIK5) 10006 | -2/Testing | Scanned by Researcher 10026 | -2/Testing | Lost 3 parts (1p2u) 10037 | -2/Testing | Found Prototype Protection 10037 | -2/Testing | Identified Hvy. Regenerative Plating 10041 | -2/Testing | Found Lgt. Regenerative Plating 10044 | -2/Testing | Found Lgt. Regenerative Plating 10049 | -2/Testing | Found Prototype Protection 10049 | -2/Testing | Identified SHELL Armor 10072 | -2/Testing | Spotted Striker 10121 | -2/Testing | Found Prototype Device 10121 | -2/Testing | Identified Exp. Hardlight Generator 10139 | -2/Testing | Spotted Striker 10287 | -2/Testing | Found Prototype Launcher 10332 | -2/Testing | Found Prototype Processor 10332 | -2/Testing | Identified Spectral Analyzer 10367 | -2/Testing | Found Prototype Energy Cannon 10367 | -2/Testing | Identified Null Cannon 10385 | -2/Testing | First assault squad dispatched 10452 | -2/Testing | Found Prototype Protection 10452 | -2/Testing | Identified Centrium Heavy Armor Plating 10575 | -2/Testing | Destroyed 12 combat bots 10616 | -2/Testing | Found Prototype Hackware 10617 | -2/Testing | Identified Containment Facilitator 10636 | -2/Testing | Discovered new exit (range 16) 10648 | -2/Testing | System corruption reached 10% 10660 | -2/Testing | Entered Access 10660 | -1/Access | Evolved 2 slots: Utility x2 10910 | -1/Access | First assault squad dispatched 11020 | -1/Access | Spotted B-99 Colossus 11249 | -1/Access | Crushed by falling debris 11250 | -1/Access | Identified Ghost Barrier 11263 | -1/Access | Core integrity fell below 50% 11267 | -1/Access | Core integrity fell below 20% 11269 | -1/Access | System corruption reached 10% 11271 | -1/Access | Destroyed by G-73 Enforcer with Phase Gun Last Messages --------------- 11266_ R-10 Processor collects Wheel. 11267_ Penetrated by Slug. 11267_ S-43 Plague destroyed. 11267_ Penetrated by Slug. 11268_ Spectral Analyzer destroyed. 11269_ K-01 Serf collects debris. 11269_ Knocked back. 11269_ Penetrated by Slug. 11269_ Slug penetrates G-73 Enforcer. 11269_ Slug penetrates Wall. 11269_ Penetrated by Slug. 11269_ Adv. Coolant Injector destroyed. 11269_ R-10 Processor collects Hvy. Machine Gun. 11270_ S-43 Plague stasis bubble strength at 195. 11270_ Penetrated by Slug. 11271_ G-73 Enforcer destroyed. 11271_ S-43 Plague stasis bubble strength at 195. 11271_ Radio-Gravity Array disabled. Map ----- +----------------------------------------------------+ | ???????????????????????????? ???????????????????? | | ???????????????????????????? ??????????????????? | | ???????????????????????????? ????????????????? | | ???????????????????????????? ????????????????? | | ???????????????????????????? ???????????????? | | ???????????????????????????? ???????????????? | | ???????????????????????????? ???????????????? | | ???????????????????????????? ???????????????? | | ???????????????????????????? ????????????????? | | ???????????????????????????? ????????????????? | | ??????????????############## ?????????????????? | | ?????????????? * ?????????????????? | | ??????????????? ??????????????????? | | ????????? ????? k ?????????????????? | | ????????? ?????""""" ?????????????????? | | ????????? ???""""" ?????????????????? | | ?????????? """""""" [ ??????????????????? | | ?????????? """""""" ???????????????????? | | ?????????? """""""" == #?????? ???????? | | ??????????? """""""" == ###???? H ???????? | | ??????# """"""" s RBB#???# #??????? | | ??????# """""""" s%sBB#???# +??????? | | ??????# %%[!#????# #??????? | | ??????# *%=;#????# #??????? | | ??????# pp =ggh#?????# #??????? | | ############## ###/@h######## #??????? | | #???# # %[% # #??????? | | #???# # =%x # #??????? | | #???# # ""# #??????? | | #???# # ""# #??????? | | " #???# # x ""# #??????? | | """" #???#= # g] G# #??????? | | """" #???# # ""# #??????? | | """"" #???# # ""# #??????? | | """" #???# # ""# #??????? | | " #???# # # ######## | | #???# # # # | | #???# # !% # # | | ###+########## ##########+### # | | * # | | ^ % %# | | # | | %/% | | =%! # | | % # | | [ % " | | ###+#############+###### ######"########### % | | # # #???# ! | | % !# # #???#####/## | | # # # "" #???????#% | +----------------------------------------------------+ Best States ------------- Heat Dissipation 118 Coolant Potential 220 Energy Generation 65 Energy Capacity 880 Matter Stores 300 Matter Capacity 300 Sight Range 24 Robot Scan Range 15 Terrain Scan Range 20 Terrain Scan Density 210 Armor Coverage 1500 Resistance: KI 25 Resistance: TH 10 Core Shielding 20 Phase Shifting 5 Evasion (%) 74 Targeting Accuracy 6 Target Analysis 12 Particle Charging 25 Offensive Hacking 28 Item Schematics ----------------- Prc. Grenade Launcher | -7/Factory | Scanalyzed Surge Thruster | -7/Factory | Hacked Imp. Hacking Suite | -6/Factory | Scanalyzed Combat Drone Bay | -6/Data Miner | Free Lgt. Regenerative Plating | -6/Data Miner | Free Enh. Armored Leg | -6/Data Miner | Free Plasma Sword | -6/Data Miner | Free Prc. Energy Filter | -6/Data Miner | Free Centrium Wheel | -6/Data Miner | Free Adv. Cryofiber Web | -6/Data Miner | Free Micro-nuke Launcher | -6/Data Miner | Free Cmb. Gravmag System | -4/Factory | Hacked Cmb. Antigrav System | -4/Extension | Hacked Quantum Reactor | -4/Extension | Hacked Imp. Gyrokinetic Inverter | -3/Research | Scanalyzed Smartbomb Launcher | -3/Research | Scanalyzed Adv. Myomer Leg | -2/Testing | Archive Adv. Quantum Shading Machine | -2/Testing | Archive Enh. Force Rifle | -2/Testing | Archive Exp. Transmission Jammer | -2/Testing | Archive Robot Schematics ------------------ H-66 Slayer | -6/Data Miner | Free E-15 Imp | -6/Data Miner | Free G-50 Soldier | -6/Data Miner | Free B-60 Warrior | -6/Data Miner | Free H-77 Assassin | -6/Data Miner | Free M-36 Artificer | -6/Data Miner | Free M-30 Cleanser | -6/Data Miner | Free B-74 Champion | -2/Testing | Archive W-44 Eye | -2/Testing | Archive Fabricated ------------ Lgt. Regenerative Plating | x1 | -3/Research Alien Tech Used ----------------- None Achievements -------------- Can't Touch This Dramatic Entrance Preemptive Strike Short-term Sacrifices Challenges ------------ None Game ------ Seed DroneHypercooledWand Manual? 0 Play Time 02:51:53 Cumulative 73.3 hours Start 2024.04.09 @ 19:05:00 End 2024.04.09 @ 21:56:40 Sessions 1 Manual Loads 0 Difficulty Rogue Special Mode None Game No. 64 Rogue 64 Adventurer 0 Explorer 0 Win Type - Total 1 Types 1/0/0/0/0/0/0/0/0 Lore% 37 Gallery% 52 Achievement% 45 Wizard Run 0 Options --------- Layout 2 ASCII 0 Keyboard 0 Movement Mouse Keybinds 0 Fullscreen 2 Font 32/SmallcapsGlow Map View 50x44 Zoom Use 0% Tactical HUD 1 Map Filters NONE Filters NONE Steam 1 RUN: 93886c42-bbb5-467b-8c11-3f071e80da3d